{"text_format":"3","workbook":"xlsx","n_sheets":7,"sheets":["Data Entry","Lift Plan","Critical Lift Permit","Printable Lift Plan","Printable Critical Permit","OPTIONS","Wind Speed Factor"],"not_rendered":{"images":42,"macros":1,"external_links":1,"defined_names":194,"comments":1},"read":"whole","date_system":"1900"}

{"sheet":"Data Entry","index":0,"n_rows":430,"n_cols":47,"rows_kept":430,"merged":[[1,15,1,17],[3,0,3,18],[5,1,5,4],[5,7,5,9],[5,12,5,17],[6,1,6,4],[6,7,6,9],[6,12,6,17],[8,1,8,4],[8,7,8,9],[8,12,8,14],[8,15,8,17],[9,1,9,4],[9,7,9,9],[9,12,9,14],[9,15,9,17],[11,12,11,17],[12,1,13,4],[12,7,13,9],[12,12,13,17],[15,0,15,18],[17,1,17,4],[17,7,17,9],[17,12,17,17],[20,1,20,4],[20,7,20,9],[20,12,20,17],[22,0,22,18],[24,1,24,4],[24,7,24,9],[24,12,24,17],[26,0,26,18],[27,1,27,4],[28,1,28,4],[28,7,28,9],[28,12,28,14],[29,7,29,9],[29,12,29,16],[31,12,31,13],[34,1,34,4],[34,7,34,9],[34,12,34,13],[34,16,34,17],[36,15,36,17],[40,1,40,4],[40,7,40,9],[40,12,40,17],[44,1,44,4],[47,2,47,3],[48,2,48,3],[51,1,51,17],[54,1,54,17],[56,4,56,10],[56,14,56,17],[57,4,58,10],[57,14,58,17],[59,4,59,7],[59,8,59,10],[60,4,61,7],[60,8,61,10],[63,4,64,10],[65,4,67,10],[65,12,65,13],[65,15,65,17],[66,12,66,13],[66,14,66,17],[70,14,70,17],[71,14,71,17],[72,14,72,17],[73,5,73,7],[73,14,73,17],[77,1,77,4],[77,8,77,12],[77,14,77,17],[78,1,78,4],[78,8,78,12],[78,14,78,17],[79,1,79,4],[79,8,79,12],[79,14,79,17],[80,1,80,4],[80,8,80,12],[80,14,80,17],[83,9,83,13],[84,9,84,13],[87,9,87,13],[88,9,88,13],[112,1,112,17],[114,0,114,18],[117,2,117,8],[117,13,117,17],[118,2,118,8],[118,13,118,17],[119,2,119,8],[119,13,119,17],[120,2,120,8],[120,13,120,17],[121,2,121,8],[121,13,121,17],[122,2,122,8],[127,2,127,10],[127,13,127,17],[128,1,128,10],[128,12,128,17],[129,2,129,10],[129,13,129,17],[130,1,130,10],[130,12,130,17],[131,2,131,10],[131,13,131,17],[132,1,132,10],[132,12,132,17],[133,2,133,10],[133,13,133,17],[134,1,134,10],[134,12,134,17],[135,2,135,10],[135,13,135,17],[136,1,136,10],[136,12,136,17],[137,2,137,10],[137,13,137,17],[138,1,138,10],[138,12,138,17],[139,2,139,10],[139,13,139,17],[140,1,140,10],[140,12,140,17],[141,2,141,10],[141,13,141,17],[142,1,142,10],[142,12,142,17],[143,2,143,10],[143,13,143,17],[144,1,144,10],[144,12,144,17],[145,2,145,10],[145,13,145,17],[146,1,146,10],[146,12,146,17],[147,2,147,10],[147,13,147,17],[148,1,148,10],[148,12,148,17],[149,2,149,10],[149,13,149,17],[150,1,150,10],[150,12,150,17],[151,2,151,10],[151,13,151,17],[152,1,152,10],[152,12,152,17],[153,2,153,10],[153,13,153,17],[154,1,154,10],[154,12,154,17],[155,2,155,10],[155,13,155,17],[156,1,156,10],[156,12,156,17],[157,2,157,10],[157,13,157,17],[158,1,158,10],[158,12,158,17],[159,2,159,10],[159,13,159,17],[160,1,160,10],[160,12,160,17],[161,2,161,10],[161,13,161,17],[162,1,162,10],[162,12,162,17],[163,2,163,10],[163,13,163,17],[164,1,164,10],[164,12,164,17],[165,2,165,10],[165,13,165,17],[166,1,166,10],[166,12,166,17],[167,2,167,10],[167,13,167,17],[168,1,168,10],[168,12,168,17],[169,2,169,10],[169,13,169,17],[170,1,170,10],[170,12,170,17],[171,2,171,10],[172,1,172,10],[175,1,180,17],[182,0,182,6],[182,15,182,17],[183,0,183,1],[183,10,183,14],[184,0,184,1],[184,10,184,14],[185,0,185,18],[187,1,194,17],[197,1,219,17],[227,2,234,17],[238,0,238,9],[240,0,240,9],[242,0,242,9],[244,0,244,9],[246,0,246,9],[248,0,248,9],[250,0,250,9],[273,4,273,7],[273,9,273,11],[275,4,275,7],[275,9,275,11],[277,4,277,7],[277,9,277,11],[279,4,279,7],[279,9,279,11],[281,4,281,7],[281,9,281,11],[283,4,283,7],[283,9,283,11],[285,4,285,7],[285,9,285,11],[287,4,287,7],[287,9,287,11],[289,4,289,7],[289,9,289,11],[291,4,291,7],[291,9,291,11],[293,4,293,7],[293,9,293,11],[295,4,295,7],[295,9,295,11],[297,4,297,7],[297,9,297,11],[304,0,312,17],[316,3,316,9],[316,12,316,14],[318,3,318,9],[318,12,318,14],[320,3,320,9],[320,12,320,14],[325,1,325,2],[325,4,325,6],[325,8,325,9],[325,13,325,14],[327,1,327,2],[327,4,327,6],[327,8,327,9],[327,13,327,14],[329,1,329,2],[329,4,329,6],[329,8,329,9],[329,13,329,14],[331,8,331,9],[331,13,331,14]]}
[{"$nulls":15},"Plan Issue Date",{"$nulls":29},"1","1"]
["DATA ENTRY",{"$nulls":14},"2014-01-01",{"$nulls":29},"2","5"]
["Use this sheet to populate the Lift Plan and the Critical Lift Permit",{"$nulls":44},"2014","2014"]
["Job Information"]
[]
[null,"Project Number",{"$nulls":5},"Lift Plan Title - Load Description",{"$nulls":4},"Lift Location"]
[]
[]
[null,"Site",{"$nulls":5},"Client",{"$nulls":4},"Frame / Tehnology",null,null,"Scope"]
[{"$nulls":19},1]
[{"$nulls":19},4]
[null,"Lift Type",{"$nulls":5},"Lift Date",{"$nulls":4},"Rigging Contractor",{"$nulls":6},2]
[null,1,{"$nulls":5},"01/01/14"]
[{"$nulls":19},2]
[null,"Note: Engineered lifts requires additional approvals"]
["References"]
[null,"Lift Plan No.",{"$nulls":5},"Procedure No.",{"$nulls":4},"Risk Assessment No. / STA"]
[]
[]
[null,"Drawing No.",{"$nulls":5},"Permit to Work No.",{"$nulls":4},"Type of Crane"]
[]
[]
["Crane Details"]
[null,"Crane Manufacturer",{"$nulls":5},"Crane Model",{"$nulls":4},"Crane Serial Number"]
[]
[]
["Load Details"]
[null,"Load ID - Component Serial Number",{"$nulls":5},"Equipment Serial Number",{"$nulls":4},"Weather Conditions",{"$nulls":3},"Wind (knots/mph/kph)"]
[]
[{"$nulls":7},"Load Dimensions",{"$nulls":4},"Wind Speed Factor References",{"$nulls":4},{"$f":"IF(WindSp_Cll<11,\"Lift Cleared\",IF(WindSp_Cll<30,\"Review Crane Documentaion for Wind warnings\",\"STOP LIFT due to weather conditions\"))","v":"Lift Cleared"}]
[null,"Center of gravity:",{"$nulls":5},"Length","Width","Height",null,null,"Gross lift weight/max hook load in air",{"$nulls":3},"Actual","Assesed"]
[]
[]
[null,"Crane configuration:",{"$nulls":5},"SWL at this radius ",{"$nulls":4},"Maximum hook height",{"$nulls":3},"Design hook height"]
[]
[]
[{"$nulls":14},"Maximum radius"]
[]
[null,"Parts of Load Cable on Block",{"$nulls":5},"Max radius during lift",{"$nulls":4},"Total Boom/Boom Ext &/or Jib Length"]
[{"$nulls":7},"(pick, swing, and set)",{"$nulls":4},"@ time of Lift"]
[]
[]
[null,"Swing Direction & Degrees of swing",{"$nulls":5},"Boom Angle",{"$nulls":4},"Will Jib and/or Boom Ext be used?  "]
[{"$nulls":7},"Pick",null,"Set",null,null,"Length"]
[]
[]
[null,"Lift Elevation"]
[null,"Max","Min",{"$nulls":9},"Erected",null,"Stowed"]
[]
[]
[null,"Who determined weight of load and Lift?"]
[]
[]
[null,"How was the weight load determined?"]
[]
[]
["Component Weights",{"$nulls":3},"Mfg. (100%chart) rated capacity",{"$nulls":7},"Is crane level?",null,"Date of last certification /inspection:"]
["Jib / Boom extension:"]
["Headache Ball Size: ",{"$nulls":11},"Yes","No"]
["Load Block Size:",{"$nulls":3},"Weight of load",{"$nulls":3},"Total Lift Load                   (Weight + Components)",{"$nulls":3},"Explain:"]
["Auxiliary Boom Head: ",{"$nulls":7},{"v":0,"d":"0 lbs"},{"$nulls":5},"Poor",null,"Good"]
["Weight of Cable (Load Fall): "]
["Slings, Rigging, Shackles, Etc.",{"$nulls":3}," Load % of crane capacity",{"$nulls":7},"Calculations?",null,"Required",null,"Not Required"]
["Lifting Booms or Bars: ",{"$nulls":11},"Crane mat?",null,"Required",null,"Not Required"]
["Allowance for Unaccounted"]
["Material in Equipment: ",{"$nulls":3},"Load Weight Approved",{"$nulls":7},"Soil Conditions"]
["Other:  ",{"$nulls":11},"Explain:"]
["Total Component Weights:",null,null,{"v":0,"d":"0 lbs"},{"$nulls":8},{"$f":"ROUND(PctgDeterminer*100,2)","v":{"v":0,"d":"0.00"}}]
[]
["Tagline Required?",{"$nulls":3},"Hazards"]
[{"$nulls":4},"Electrical?",{"$nulls":3},"Yes","No",{"$nulls":3},"If Yes, explain:"]
[null,"Yes","No",null,"Overhead?",{"$nulls":3},"Yes","No",{"$nulls":3},"If Yes, explain:"]
["Communications by:",{"$nulls":3},"Underground?",{"$nulls":3},"Yes","No",{"$nulls":3},"If Yes, explain:"]
[null,"     Hand",null,"Radio","Others?",{"$nulls":3},"Yes","No",{"$nulls":3},"If Yes, explain:"]
[]
["Rigging Component List"]
[]
[1," ",{"$nulls":5},5,{"$nulls":5},9]
[2,"     ",{"$nulls":5},6,{"$nulls":5},10]
[3,{"$nulls":6},7,{"$nulls":5},11]
[4,{"$nulls":6},8,{"$nulls":5},12]
[]
["Final Load Inspection:"]
["All moving parts secured?",{"$nulls":3},"Yes                         No                             If No, explain:"]
["All attachments or loose items ",{"$nulls":3},"Yes                         No                             If No, explain:"]
["secured?"]
["Rigging Component Inspection"]
["Certificates/Tags Checked?",{"$nulls":3},"Yes                         No                             If No, explain:"]
["Rigging in good condition?",{"$nulls":3},"Yes                         No                             If No, explain:"]
["Sketch of Crane relative to lift and rigging to component attach additional sheets if required:"]
["Insert Sketch Image or Photo of the location; Please resize as needed."]
{"$rows_empty":20}
["Description of lifting operation"]
[]
[]
["EHS"]
["Lifting team personnel   Attach Risk assessment / STA  with information on the following and tick as applicable."]
[]
[null,null,"Prevention of person(s) becoming stuck/trapped",{"$nulls":10},"Environmental hazards"]
[null,null,"Prevention of person(s) falling/being crushed",{"$nulls":10},"Fall hazards"]
[null,null,"3 Part communications methods",{"$nulls":10},"Currently trained/competent personnel"]
[null,null,"Crane annual inspection and load test documentation ",{"$nulls":10},"Engineer technical data for rigging hardware (lifting beams, others) "]
[null,null,"Site-specific procedures",{"$nulls":10},"If applicable high angle rescue available for support"]
[null,null,"If applicable equipment properly secured in transporter"]
[]
["Possible safety measures to be considered. Please answer the questions as applicable and provide "]
["“step-by-step” details on the following section.  To be completed for safety measures by lift supervisor."]
[]
[null,null,"Have you confirmed that the crane annual inspection is current and it passed the inspection?",{"$nulls":10},"Based on the size of the load have you identified the proper eye bolts, turnbuckles and chainfalls?"]
[]
[null,null,"Have you confirmed the stability of this load?",{"$nulls":10},"Is the load to be transported to a laydown area away from the crane radius?"]
[]
[null,null,"Is the lifting point available directly overhead?",{"$nulls":10},"Are there conflicting operations?"]
[]
[null,null,"If this lift an awkward size/shape load with sharp edges?",{"$nulls":10},"Do all members of the lifting team speak the same language?"]
[]
[null,null,"Does the equipment/load have dedicated lift points (trunnions)?",{"$nulls":10},"If applicable are FME devices ready for use?"]
[]
[null,null,"Is the operator licensed/certified to operate this crane?",{"$nulls":10},"When using mobile cranes or boom-trucks. Have you conducted ground pressure calculations for setting up the outriggers?"]
[]
[null,null,"Is the crane capacity adequate for the radius of this lift?",{"$nulls":10},"If working on nights do you have the proper load visibility from all angles?"]
[]
[null,null,"Have you removed all loose objects from the load?",{"$nulls":10},"Is this lift going to have blind points?"]
[]
[null,null,"Do you have proper cribbing material and understand the GE/GSII cribbing requirements?",{"$nulls":10},"If working on nights do you have proper lighting for laydown/set-down areas?"]
[]
[null,null,"Are tag lines required?",{"$nulls":10},"Have you established an exclusion zone around the lifting operation?"]
[]
[null,null,"Are you lifting chemicals?",{"$nulls":10},"Is ground cover needed under crane to catch/contain oil spills?"]
[]
[null,null,"Is access and egress available to connect/remove the rigging hardware?",{"$nulls":10},"Do we have suitable/adequate supervision for this lift?"]
[]
[null,null,"Are you using more than one crane to perform this lift?",{"$nulls":10},"Do you have the proper PPE for the task at hand?"]
[]
[null,null,"Will you be using more than 100% of this crane's total capacity?",{"$nulls":10},"Have you and the lift team prepared the STA and reviewed it in the work area as required?"]
[]
[null,null,"Have you validated the certifications for the rigging hardware that will be use during this lift?",{"$nulls":10},"If using lifting beams/spreader bars have you reviewed the technical engineer documentation? "]
[]
[null,null,"Do you have the proper mats under each outrigger pad?",{"$nulls":10},"Is the working space adequate and  unobstructed e.g. scaffolds, pipes?"]
[]
[null,null,"Have you conducted a visual pre-use inspection of the rigging hardware that will be used for this lift?",{"$nulls":10},"Is the general work area free of congestion to minimize slip/trip/fall hazards, and alllow the operator to escape in event of unexpected movement or equipment failure?"]
[]
[null,null,"Have we identified the safe working load (SWL) and crane mode?",{"$nulls":10},"Have we identified the Center of Gravity (CG)?"]
[]
[null,null,"Are wire rope/slings softeners available and used as required?",{"$nulls":10},"Are you planning to monitor the wind speed and other weather conditions?"]
[]
[null,null,"Are you going to fly the load over plant/equipment/assets?",{"$nulls":10},"If applicable, are we using sufficient personnel to safely walk the load (spotters)?"]
[]
[null,null,"Does this lift have restricted head room?",{"$nulls":10},"If using an overhead crane, can the operator maintain a safe distance away from the load (for example, 1.5 times the load largest dimension)?"]
[]
[null,null,"Can the lay-down area support the intended load - strenght/stability?",{"$nulls":10},"Are the crane/hoist controls clear and legible so the operator can readily determine each function?"]
[]
[null,null,"Is the weight of the load verified?"]
[]
[]
["Any further safety measures   (as identified in the risk assessment)"]
{"$rows_empty":7}
["Communications available:",{"$nulls":14},"Communication Checks"]
["Primary:",null,null,"Radio","Hand signal",null,null,"Voice","Other","Explain:",{"$nulls":6},"Primary Check:"]
["Secondary:",null,null,"Radio","Hand signal",null,null,"Voice","Other","Explain:",{"$nulls":6},"Secondary Check:"]
["Details"]
["Sketch/Photo of initial pick up location, load path and lay down area (Include any obstructions or equipment clashes that may ocurr and how they will be avoided)"]
[null,"."]
{"$rows_empty":8}
["Step-by-step details of lifting operation                                  (Responsible)"]
{"$rows_empty":24}
["Technical review "]
[]
["Has a technical review conducted?"]
[]
[null,null,"Yes (attach details)",{"$nulls":4},"No"]
[]
[null,"Details"]
{"$rows_empty":8}
["Applicable Legislation/Codes of practice",{"$nulls":12},"Applicable"]
[]
["Health and Safety at Work etc Act 1974"]
[]
["Lifting Operations and Lifting Equipment Regulations 1998 (LOLER)"]
[]
["Provision and Use of Work Equipment Regulations (PUWER) 1998"]
[]
["Control of Substances Hazardous to Health Regulations 2002"]
[]
["Manual Handling Operations Regulations 1992 as amended 2002"]
[]
["BS7121 Safe Use of Cranes part 1 – General 2006"]
[]
["BS7121 Safe Use of Cranes part 3 – General 2000"]
[]
["OSHA 1910.179 & 184 General industry"]
[]
["OSHA 1926.1400 Construction, 1926.1432 Multi-crane/derricks, 1926.753 Hoisting & rigging"]
[]
["ASME B30.1 Hydraulic industrial rollers, air casters and hydraulic gantries"]
[]
["ASME B30.2 Overhead and Gantry Cranes (top running bridge, multiple girder, top running trolley hoist)"]
[]
["ASME B30.9 Slings"]
[]
["ASME B30.26 Rigging Hardware"]
[]
["ASME B30.20 Below the Hook Lifting Devices"]
[]
["ASME B.17 Overhead and Gantry Cranes (top running bridge, single girder, underhung hoist)"]
[]
["Other Applicable Legislations:"]
[]
["Persons involved in the lift"]
[]
["Skill/Expertise",{"$nulls":3},"Name",{"$nulls":4},"Date"]
["Supervisor",{"$nulls":8},"2014-01-01"]
[]
["Customer Liason",{"$nulls":8},"2014-01-01"]
[]
["Banksman/Flagger Signal Person",{"$nulls":8},"2014-01-01"]
[]
["Rigger",{"$nulls":8},"2014-01-01"]
[]
["Crane Operator",{"$nulls":8},"2014-01-01"]
[]
["Tag Line Operator #1",{"$nulls":8},"2014-01-01"]
[]
["Tag Line Operator #2",{"$nulls":8},"2014-01-01"]
[]
["Mechanical Fitter/Turbine Mechanic #1",{"$nulls":8},"2014-01-01"]
[]
["Mechanical Fitter/Turbine Mechanic #2",{"$nulls":8},"2014-01-01"]
[]
["Mechanical Fitter/Turbine Mechanic #3",{"$nulls":8},"2014-01-01"]
[]
["Mechanical Fitter/Turbine Mechanic #4",{"$nulls":8},"2014-01-01"]
[]
["Field Engineer",{"$nulls":8},"2014-01-01"]
[]
["Safety/EHS Manager / Appointed Person",{"$nulls":8},"2014-01-01"]
[]
[]
[{"$nulls":4},"Attended pre task briefing",{"$nulls":4},"Read and understands the lift plan."]
[]
["Debrief and learning points (did the lift go as planned or are changes to the lift plan required?)"]
{"$rows_empty":11}
["Competent person(s)"]
[{"$nulls":3},"Name",{"$nulls":8},"Date"]
["FE Name",{"$nulls":11},"2014-01-01"]
[]
["Supervisor Name",{"$nulls":11},"2014-01-01"]
[]
["Rigger Name",{"$nulls":11},"2014-01-01"]
[]
[]
[]
["Pre-Lift Meeting",{"$nulls":3},"Date:  ",{"$nulls":8},"Date"]
[{"$nulls":4},"01/01/14",{"$nulls":8},"01/01/14"]
["1.  Crane Operator",{"$nulls":3},"Date",{"$nulls":3},"4.  Field Engineer",{"$nulls":4},"Date"]
[{"$nulls":4},"01/01/14",{"$nulls":8},"01/01/14"]
["2.  Rigger",{"$nulls":3},"Date",{"$nulls":3},"5.  Safety / EHS Manager",{"$nulls":4},"Date"]
[{"$nulls":4},"01/01/14",{"$nulls":8},"01/01/14"]
["3.  Banksman/Flagger Signal Person",{"$nulls":7},"6.  Appointed Person/Supervisor",{"$nulls":4},"Date"]
[{"$nulls":13},"01/01/14"]
[{"$nulls":8},"7.  Customer Liason"]
[null,"NOTICE:",{"$nulls":12},"Sheet Navigator"]
[null,"This is only a Data Entry Tool. This is not a valid document to support any lift."]
{"$rows_empty":66}
[74]
["H74"]
["The lift is coordinated with other crews"]
[133]
["M133"]
["We haven't coordinated the lift yet"]
[]
[]
[]
[]
[]
[]
[74]
["H74"]
["The lift is coordinated with other crews"]
[133]
["M133"]
["We haven't coordinated the lift yet"]
["The lift is coordinated with other crews"]
[133]
["M133"]
["We haven't coordinated the lift yet"]
[129]
[74]
["H74"]
["The lift is coordinated with other crews"]
[126]
["M126"]
["We haven't coordinated the lift yet"]

{"sheet":"Lift Plan","index":1,"n_rows":328,"n_cols":16,"rows_kept":328,"merged":[[8,1,8,12],[9,1,9,5],[9,7,9,12],[10,1,10,5],[11,1,11,6],[11,7,11,8],[11,9,11,12],[12,7,12,8],[14,4,14,6],[14,9,14,12],[15,4,15,6],[15,9,15,12],[16,4,16,6],[21,1,21,3],[22,2,22,3],[22,4,22,6],[22,8,22,9],[22,10,22,12],[24,2,24,3],[24,4,24,6],[24,8,24,9],[24,10,24,12],[25,5,25,6],[25,8,25,9],[25,10,25,12],[26,2,26,3],[26,4,26,6],[26,8,26,9],[26,10,26,12],[27,0,27,4],[27,5,27,6],[28,2,28,3],[28,4,28,6],[28,8,28,9],[28,10,28,12],[29,5,29,12],[30,8,30,9],[30,10,30,12],[31,0,31,4],[31,5,31,6],[31,8,31,9],[31,10,31,12],[32,2,32,3],[32,4,32,6],[32,8,32,9],[32,10,32,12],[33,0,33,4],[33,5,33,6],[33,8,33,9],[33,10,33,12],[37,0,43,12],[47,1,47,5],[47,8,47,12],[48,1,48,5],[48,8,48,12],[49,1,49,5],[49,8,49,12],[50,1,50,5],[50,8,50,12],[51,1,51,5],[51,8,51,12],[52,1,52,5],[68,1,68,6],[68,8,68,12],[69,0,69,6],[69,7,69,12],[70,1,70,6],[70,8,70,12],[71,0,71,6],[71,7,71,12],[72,1,72,6],[72,8,72,12],[73,0,73,6],[73,7,73,12],[74,1,74,6],[74,8,74,12],[75,0,75,6],[75,7,75,12],[76,1,76,6],[76,8,76,12],[77,0,77,6],[77,7,77,12],[78,1,78,6],[78,8,78,12],[79,0,79,6],[79,7,79,12],[80,1,80,6],[80,8,80,12],[81,0,81,6],[81,7,81,12],[82,1,82,6],[82,8,82,12],[83,0,83,6],[83,7,83,12],[84,1,84,6],[84,8,84,12],[85,0,85,6],[85,7,85,12],[86,1,86,6],[86,8,86,12],[87,0,87,6],[87,7,87,12],[88,1,88,6],[88,8,88,12],[89,0,89,6],[89,7,89,12],[90,1,90,6],[90,8,90,12],[91,0,91,6],[91,7,91,12],[92,1,92,6],[92,8,92,12],[93,0,93,6],[93,7,93,12],[94,1,94,6],[94,8,94,12],[95,0,95,6],[95,7,95,12],[96,1,96,6],[96,8,96,12],[97,0,97,6],[97,7,97,12],[98,1,98,6],[98,8,98,12],[99,0,99,6],[99,7,99,12],[100,1,100,6],[100,8,100,12],[101,0,101,6],[101,7,101,12],[102,1,102,6],[102,8,102,12],[103,0,103,6],[103,7,103,12],[104,1,104,6],[104,8,104,12],[105,0,105,6],[105,7,105,12],[106,1,106,6],[106,8,106,12],[107,0,107,6],[107,7,107,12],[108,1,108,6],[108,8,108,12],[109,0,109,6],[109,7,109,12],[110,1,110,6],[110,8,110,12],[111,0,111,6],[111,7,111,12],[112,1,112,6],[112,8,112,12],[113,0,113,6],[116,0,132,12],[136,0,136,3],[138,0,138,1],[138,8,138,11],[140,0,140,1],[140,8,140,11],[142,0,142,3],[142,4,142,6],[142,8,142,9],[149,1,149,5],[149,8,149,11],[150,1,150,5],[150,8,150,11],[151,1,151,5],[151,8,151,11],[152,1,152,5],[152,8,152,11],[153,1,153,5],[153,8,153,11],[154,1,154,5],[154,8,154,11],[159,0,184,12],[192,1,200,12],[250,0,250,9],[250,10,250,11],[252,0,252,9],[252,10,252,11],[254,0,254,9],[254,10,254,11],[256,0,256,9],[256,10,256,11],[258,0,258,9],[258,10,258,11],[260,0,260,9],[260,10,260,11],[262,0,262,9],[262,10,262,11],[264,10,264,11],[266,10,266,11],[268,10,268,11],[270,10,270,11],[272,10,272,11],[274,10,274,11],[276,10,276,11],[278,10,278,11],[283,10,283,12],[285,10,285,12],[287,10,287,12],[289,10,289,12],[291,10,291,12],[293,10,293,12],[295,10,295,12],[297,10,297,12],[299,10,299,12],[301,10,301,12],[303,10,303,12],[305,10,305,12],[311,0,316,12]]}
[]
[{"$nulls":6},"Appendix 4"]
[{"$nulls":6},"Lift Plan"]
[]
[]
["To be completed by the competent person"]
[]
[]
["Lift Plan Title:",{"$f":"LiftPlanName_Cll","v":0}]
["Site:",{"$f":"Site_Cll","v":0},{"$nulls":4},"SOW:",{"$f":"SOW_Cll&\" - \"&TechCll","v":" - "}]
["Client:",{"$f":"Client_Cll","v":0},{"$nulls":4},"Project:",{"$f":"ProjectName_Cll","v":0}]
["Lift Location: ",{"$f":"LiftLoc_Cll","v":0},{"$nulls":5},"Equipment S/N:",null,{"$f":"TurbineSNumb","v":0}]
["Lift Type:",null,"Routine",null,null,"Non-routine","Critical","Engineered"]
[{"$nulls":7},"Note: Engineered lifts requires additional approvals   "]
["References:",null,null,"Lift Plan No.",{"$f":"LiftPlanNo_Cll","v":0},{"$nulls":3},"Procedures Ref.",{"$f":"ProcedRef_Cll","v":0}]
[{"$nulls":3},"Risk Assessment No.",{"$f":"RiskAss_Cll","v":0},{"$nulls":3},"Drawings Ref.",{"$f":"Drawings_Cll","v":0}]
[{"$nulls":3},"Permit to Work No.",{"$f":"Permit_Cll","v":0}]
[]
[]
["Load Details / Crane Details (maximum hook load not to be exceeded)"]
[]
["Load ID",{"$f":"LoadID_Cll","v":0},{"$nulls":4},"Load Dimensions (L/W/H):"]
[]
["Center of gravity:",{"$nulls":4},"Obvious",null,null,"Estimated",null,null,"Drawing"]
[]
["Weather conditions (maximum):",{"$nulls":4},{"$f":"DesLiftCon_Cll","v":0},null,null,"Wind (knots/MPH/KPH)",null,{"$f":"WindSp_Cll&\" \"&WindUnit","v":" "}]
[]
["Gross lift weight/max hook load in air",{"$nulls":4},{"$f":"GrossWeight&\" \"&HookWtUnit","v":" "},null,null,"Actual",null,null,"Assessed"]
[]
["Crane configuration/mode/type:",{"$nulls":4},{"$f":"CraneConf_Cll","v":0}]
[]
["SWL at this radius",{"$nulls":4},{"$f":"SWL_Cll","v":{"v":0,"d":"0 ft"}},null,null,"Design hook height",null,{"$f":"DesingHook_Cll","v":{"v":0,"d":"0 ft"}}]
[]
["Maximum hook height:",{"$nulls":7},"Maximum radius:",null,{"$f":"MaxRadius_Cll","v":{"v":0,"d":"0 ft"}}]
[]
["Description of lifting operation"]
[]
[{"$f":"LiftDesc","v":0}]
{"$rows_empty":7}
["Lifting team personnel   Attach STA with information on the following and tick as applicable."]
[]
[{"$f":"LiftPers1","v":0},"Prevention of person(s) becoming stuck/trapped",{"$nulls":5},{"$f":"LiftPers7","v":0},"Environmental hazards",{"$nulls":6},"Yes"]
[{"$f":"LiftPers2","v":0},"Prevention of person(s) falling/being crushed",{"$nulls":5},{"$f":"LiftPers8","v":0},"Fall hazards",{"$nulls":6},"No"]
[{"$f":"LiftPers3","v":0},"3 Part communications methods",{"$nulls":5},{"$f":"LiftPers9","v":0},"Currently trained/competent personnel",{"$nulls":6},"N/A"]
[{"$f":"LiftPers4","v":0},"Crane annual inspection and load test documentation ",{"$nulls":5},{"$f":"LiftPers10","v":0},"Engineer technical data for rigging hardware (lifting beams, others) "]
[{"$f":"LiftPers5","v":0},"Site-specific procedures",{"$nulls":5},{"$f":"LiftPers11","v":0},"If applicable high angle rescue available for support"]
[{"$f":"LiftPers6","v":0},"If applicable equipment properly secured in transporter"]
{"$rows_empty":8}
[{"$nulls":14},"Yes"]
[{"$nulls":14},"No"]
[]
[]
["Possible safety measures to be considered. Please answer the questions as applicable and provide "]
["“step-by-step” details on the following section.  To be completed for safety measures by lift supervisor."]
[]
[null,"Have you confirmed that the crane annual inspection is current and it passed the inspection?",{"$nulls":6},"Based on the size of the load have you identified the proper eye bolts, turnbuckles and chainfalls?"]
[]
[null,"Have you confirmed the stability of this load?",{"$nulls":6},"Is the load to be transported to a laydown area away from the crane radius?"]
[]
[null,"Is the lifting point available directly overhead?",{"$nulls":6},"Are there conflicting operations?"]
[]
[null,"If this lift an awkward size/shape load with sharp edges?",{"$nulls":6},"Do all members of the lifting team speak the same language?"]
[]
[null,"Does the equipment/load have dedicated lift points (trunnions)?",{"$nulls":6},"If applicable are FME devices ready for use?"]
[]
[null,"Is the operator licensed/certified to operate this crane?",{"$nulls":6},"When using mobile cranes or boom-trucks. Have you conducted ground pressure calculations for setting up the outriggers?"]
[]
[null,"Is the crane capacity adequate for the radius of this lift?",{"$nulls":6},"If working on nights do you have the proper load visibility from all angles?"]
[]
[null,"Have you removed all loose objects from the load?",{"$nulls":6},"Is this lift going to have blind points?"]
[]
[null,"Do you have proper cribbing material and understand the GE/GSII cribbing requirements?",{"$nulls":6},"If working on nights do you have proper lighting for laydown/set-down areas?"]
[]
[null,"Are tag lines required?",{"$nulls":6},"Have you established an exclusion zone around the lifting operation?"]
[]
[null,"Are you lifting chemicals?",{"$nulls":6},"Is ground cover needed under crane to catch/contain oil spills?"]
[]
[null,"Is access and egress available to connect/remove the rigging hardware?",{"$nulls":6},"Do we have suitable/adequate supervision for this lift?"]
[]
[null,"Are you using more than one crane to perform this lift?",{"$nulls":6},"Do you have the proper PPE for the task at hand?"]
[]
[null,"Will you be using more than 100% of this crane's total capacity?",{"$nulls":6},"Have you and the lift team prepared the STA and reviewed it in the work area as required?"]
[]
[null,"Have you validated the certifications for the rigging hardware that will be use during this lift?",{"$nulls":6},"If using lifting beams/spreader bars have you reviewed the technical engineer documentation? "]
[]
[null,"Do you have the proper mats under each outrigger pad?",{"$nulls":6},"Is the working space adequate and  unobstructed e.g. scaffolds, pipes?"]
[]
[null,"Have you conducted a visual pre-use inspection of the rigging hardware that will be used for this lift?",{"$nulls":6},"Is the general work area free of congestion to minimize slip/trip/fall hazards, and alllow the operator to escape in event of unexpected movement or equipment failure?"]
[]
[null,"Have we identified the safe working load (SWL) and crane mode?",{"$nulls":6},"Have we identified the Center of Gravity (CG)?"]
[]
[null,"Are wire rope/slings softeners available and used as required?",{"$nulls":6},"Are you planning to monitor the wind speed and other weather conditions?"]
[]
[null,"Are you going to fly the load over plant/equipment/assets?",{"$nulls":6},"If applicable, are we using sufficient personnel to safely walk the load (spotters)?"]
[]
[null,"Does this lift have restricted head room?",{"$nulls":6},"If using an overhead crane, can the operator maintain a safe distance away from the load (for example, 1.5 times the load largest dimension)?"]
[]
[null,"Can the lay-down area support the intended load - strenght/stability?",{"$nulls":6},"Are the crane/hoist controls clear and legible so the operator can readily determine each function?"]
[]
["NO","Is the weight of the load verified?"]
["Nothing"]
[]
["Any further safety measures   (as identified in the risk assessment)"]
[{"$f":"FurtherMeas","v":0}]
{"$rows_empty":17}
["Communications"]
[]
["Communications available:"]
[]
["Primary: ",null,null,"Radio",null,"Hand signal","Voice","Other:",{"$f":"OtherComms","v":0}]
[]
["Secondary: ",null,null,"Radio",null,"Hand signal","Voice","Other:",{"$f":"OtherComms1","v":0}]
[]
["Communication checks:"]
[]
[{"$nulls":3},"Primary Checked",{"$nulls":3},"Secondary checked"]
[]
[]
["Lifting equipment and accessories to be used   (specify type, SWL, Serial # and configuration)"]
[]
[1,{"$f":"RigComp1","v":" "},{"$nulls":5},7,{"$f":"RigComp7","v":0}]
[2,{"$f":"RigComp2","v":"     "},{"$nulls":5},8,{"$f":"RigComp8","v":0}]
[3,{"$f":"RigComp3","v":0},{"$nulls":5},9,{"$f":"RigComp9","v":0}]
[4,{"$f":"RigComp4","v":0},{"$nulls":5},10,{"$f":"RigComp10","v":0}]
[5,{"$f":"RigComp5","v":0},{"$nulls":5},11,{"$f":"RigComp11","v":0}]
[6,{"$f":"RigComp6","v":0},{"$nulls":5},12,{"$f":"RigComp12","v":0}]
[]
[]
["Step-by-step details of lifting operation                                  (Responsible)"]
[]
[{"$f":"StepBStep","v":0}]
{"$rows_empty":26}
["Technical review "]
[]
["Has a technical review conducted?"]
[]
[null,null,"Yes (attach details)",{"$nulls":4},"No"]
[]
["Details",{"$f":"TechDetails","v":0}]
{"$rows_empty":10}
["Sketches"]
["Sketch or attach Drawing detailing the rigging-up of the lifting equipment and lifting accessories"]
{"$rows_empty":21}
["Sketch of initial pick-up location, load path and lay-down area (include any obstructions or equipment clashes that may occur "]
["and how they will be avoided)"]
{"$rows_empty":20}
["Applicable Legislation/Codes of practice"]
[]
["Health and Safety at Work etc Act 1974",{"$nulls":9},{"$f":"Legisl1","v":0}]
[]
["Lifting Operations and Lifting Equipment Regulations 1998 (LOLER)",{"$nulls":9},{"$f":"Legisl2","v":0}]
[]
["Provision and Use of Work Equipment Regulations (PUWER) 1998",{"$nulls":9},{"$f":"Legisl3","v":0}]
[]
["Control of Substances Hazardous to Health Regulations 2002",{"$nulls":9},{"$f":"Legisl4","v":0}]
[]
["Manual Handling Operations Regulations 1992 as amended 2002",{"$nulls":9},{"$f":"Legisl5","v":0}]
[]
["BS7121 Safe Use of Cranes part 1 – General 2006",{"$nulls":9},{"$f":"Legisl6","v":0}]
[]
["BS7121 Safe Use of Cranes part 3 – General 2000",{"$nulls":9},{"$f":"Legisl7","v":0}]
[]
["OSHA 1910.179 & 184 General industry",{"$nulls":9},{"$f":"Legisl8","v":0}]
[]
["OSHA 1926.1400 Construction, 1926.1432 Multi-crane/derricks, 1926.753 Hoisting & rigging",{"$nulls":9},{"$f":"Legisl9","v":0}]
[]
["ASME B30.1 Hydraulic industrial rollers, air casters and hydraulic gantries",{"$nulls":9},{"$f":"Legisl10","v":0}]
[]
["ASME B30.2 Overhead and Gantry Cranes (top running bridge, multiple girder, top running trolley hoist)",{"$nulls":9},{"$f":"Legisl11","v":0}]
[]
["ASME B30.9 Slings",{"$nulls":9},{"$f":"Legisl12","v":0}]
[]
["ASME B30.26 Rigging Hardware",{"$nulls":9},{"$f":"Legisl13","v":0}]
[]
["ASME B30.20 Below the Hook Lifting Devices",{"$nulls":9},{"$f":"Legisl14","v":0}]
[]
["ASME B.17 Overhead and Gantry Cranes (top running bridge, single girder, underhung hoist)",{"$nulls":9},{"$f":"Legisl15","v":0}]
[]
["Persons involved in the lift"]
[]
["Skill/Expertise",{"$nulls":4},"Name",null,"Signature",null,null,"Date"]
["Appointed Person/Supervisor",{"$nulls":4},{"$f":"AppSup","v":0},{"$nulls":4},{"$f":"Date1","v":"2014-01-01"}]
[]
["Customer Liason",{"$nulls":4},{"$f":"CustLia","v":0},{"$nulls":4},{"$f":"Date2","v":"2014-01-01"}]
[]
["Banksman/Signal Person",{"$nulls":4},{"$f":"Banksman","v":0},{"$nulls":4},{"$f":"Date3","v":"2014-01-01"}]
[]
["Rigger",{"$nulls":4},{"$f":"Rigger","v":0},{"$nulls":4},{"$f":"Date4","v":"2014-01-01"}]
[]
["Crane Operator",{"$nulls":4},{"$f":"CraneOper","v":0},{"$nulls":4},{"$f":"Date5","v":"2014-01-01"}]
[]
["Tag Line Operator #1",{"$nulls":4},{"$f":"TagOp","v":0},{"$nulls":4},{"$f":"Date6","v":"2014-01-01"}]
[]
["Tag Line Operator #1",{"$nulls":4},{"$f":"TagOp2","v":0},{"$nulls":4},{"$f":"Date7","v":"2014-01-01"}]
[]
["Mechanical Fitter #1",{"$nulls":4},{"$f":"MechF1","v":0},{"$nulls":4},{"$f":"Date8","v":"2014-01-01"}]
[]
["Mechanical Fitter #2",{"$nulls":4},{"$f":"MechF2","v":0},{"$nulls":4},{"$f":"Date9","v":"2014-01-01"}]
[]
["Mechanical Fitter #3",{"$nulls":4},{"$f":"MechF3","v":0},{"$nulls":4},{"$f":"Date10","v":"2014-01-01"}]
[]
["Mechanical Fitter #4",{"$nulls":4},{"$f":"MechF4","v":0},{"$nulls":4},{"$f":"Date11","v":"2014-01-01"}]
[]
["Field Engineer",{"$nulls":4},{"$f":"FieldE","v":0},{"$nulls":4},{"$f":"Date12","v":"2014-01-01"}]
[]
[{"$nulls":4},"Attended pre task briefing",null,"Read and understands the lift plan."]
[]
["Debrief and learning points (did the lift go as planned or are changes to the lift plan required?)"]
[]
[{"$f":"Debrief","v":0}]
{"$rows_empty":7}
["Competent person(s)"]
[]
["FE Name",null,null,{"$f":"FieldE","v":0},{"$nulls":5},{"$f":"ComPerDate1","v":"2014-01-01"}]
[]
["Supervisor Name",null,null,{"$f":"AppSup","v":0},{"$nulls":5},{"$f":"CompPerDate2","v":"2014-01-01"}]
[]
["Rigger Name",null,null,{"$f":"Rigger","v":0},{"$nulls":5},{"$f":"CompPerDate3","v":"2014-01-01"}]
[]
[{"$nulls":3},"Name",null,null,"Signature",null,null,"Date"]

{"sheet":"Critical Lift Permit","index":2,"n_rows":66,"n_cols":5,"rows_kept":66,"merged":[[0,0,1,3],[2,0,2,4],[4,4,5,4],[6,0,6,1],[6,2,6,4],[7,2,7,3],[8,2,8,3],[9,3,10,3],[10,2,16,2],[14,3,15,4],[22,3,22,4],[23,3,23,4],[24,3,24,4],[25,3,25,4],[27,3,27,4],[28,3,28,4],[29,3,29,4],[30,3,30,4],[31,3,31,4],[32,3,32,4],[33,3,33,4],[34,3,34,4],[35,3,35,4],[36,3,36,4],[37,3,37,4],[38,3,38,4],[41,3,41,4],[42,3,42,4],[44,3,44,4],[45,3,45,4],[48,0,48,4]]}
["Major & Critical Lift Permit - Mobile or Non-Mobile Crane",{"$nulls":3},"Issue Date:"]
[{"$nulls":4},"2014-01-01"]
["Section A - Load & Capacity Data"]
["1. Project Name","2. Contractor","3. Lift Date","4.Lift Location"]
["5.  Crane Manufacturer","6.  Model #","7.Serial #","8.  Total Boom/Boom Ext.&/or Jib Length @ time of Lift:","9.  Parts of Load Cable on Block:"]
["10. Max radius during lift (pick, swing, and set)","11.  Swing Dir. And Degrees of swing","12.  Lift Elevation         Max.                   Min.","13.  Boom Angle:       Pick               Set"]
["14.  Will Jib and/or Boom Ext be used?  Yes                 No\n",null,"15.  Who determined weight of load and Lift?\n  "]
["If Yes:            Length",null,{"$f":"LoadDeterminer","v":0}]
["                      Erected                                         Stowed ",null,{"$f":"LoadDetermination","v":0}]
["16.  Component Weights",null,"17.  Load Description:","18.  Mfg. (100%chart) rated capacity from chart as outlined in Blocks 5 - 14",{"$f":"MFGPctg","v":{"v":0,"d":"0 lbs"}}]
["Jib / Boom extension:",{"$f":"JibExt","v":{"v":0,"d":"0 lbs"}},{"$f":"LiftPlanName_Cll","v":0}]
["Headache Ball Size: ",{"$f":"Headache","v":{"v":0,"d":"0 lbs"}},null,"19. Weight of Load:",{"$f":"LoadWeight","v":{"v":0,"d":"0 lbs"}}]
["Load Block Size:",{"$f":"LoadBlock","v":{"v":0,"d":"0 lbs"}},null,"20.  Total Lift Load - (Block 16+19)",{"$f":"TotalLiftLoad","v":{"v":0,"d":"0 lbs"}}]
["Auxiliary Boom Head: ",{"$f":"AuxBoom","v":{"v":0,"d":"0 lbs"}},null,"21.  Load % of Crane Capacity, (Divide Block 20 by 18)",{"$f":"IF(E10=0, \" \", +E13/E10)","v":" "}]
["Weight of Cable (Load Fall): ",{"$f":"CableWeight","v":{"v":0,"d":"0 lbs"}},null,{"$f":"+IF($E$14>1.25,\"STOP, LIFT IS NOT ALLOWED\",IF($E$14>1,\"STOP, Engineered Lift Plan Required\",IF($E$14>0.75,\"Critical Lift Plan Requied, Proceed with Caution\",\"\")))","v":"STOP, LIFT IS NOT ALLOWED"}]
["Slings, Rigging, Shackles, Etc. :",{"$f":"Slings","v":{"v":0,"d":"0 lbs"}}]
["Lifting Booms or Bars: ",{"$f":"LiftBooms","v":{"v":0,"d":"0 lbs"}},null,"22.  Inspection/Testing:"]
["Allowance for Unaccounted",{"$f":"Allowance","v":{"v":0,"d":"0 lbs"}}," 23. Is Crane Level?     Yes                    No","Date of Last Certification/inspection:"]
["Material in Equipment: ",{"$f":"Material","v":{"v":0,"d":"0 lbs"}},"24.   Soil Conditions?   ","Poor                                                                 Good"]
["Other:  ",{"$f":"Other","v":{"v":0,"d":"0 lbs"}},"Calculations?","Required                                          Not Required"]
["  Total Component Weights:          ____________________",{"$f":"TotalComp","v":{"v":0,"d":"0 lbs"}},"Crane Mats?","Required                                          Not Required"]
["25. Tagline Required?","26.  Hazards - attach additional sheets as required:"]
["Yes","          Electrical?","Yes                         No                     If Yes, explain:",{"$f":"ElectHaz","v":0}]
["No","         Overhead?","Yes                         No                     If Yes, explain:",{"$f":"OvrHd","v":0}]
["27.  Communications by:","         Underground?","Yes                         No                     If Yes, explain:",{"$f":"UndrGrnd","v":0}]
["HAND  OR   RADIO","Others?","Yes                         No                     If Yes, explain:",{"$f":"OthersEx","v":0}]
["28. Sketch of Crane relative to lift and rigging to component. Attach additional sheets if required:",null,null,"29. Rigging Component List"]
[null,null,1,{"$f":"RigComp1","v":" "}]
[null,null,2,{"$f":"RigComp2","v":"     "}]
[null,null,3,{"$f":"RigComp3","v":0}]
[null,null,4,{"$f":"RigComp4","v":0}]
[null,null,5,{"$f":"RigComp5","v":0}]
[null,null,6,{"$f":"RigComp6","v":0}]
[null,null,7,{"$f":"RigComp7","v":0}]
[null,null,8,{"$f":"RigComp8","v":0}]
[null,null,9,{"$f":"RigComp9","v":0}]
[null,null,10,{"$f":"RigComp10","v":0}]
[null,null,11,{"$f":"RigComp11","v":0}]
[null,null,12,{"$f":"RigComp12","v":0}]
[]
["30. Final Load Inspection:"]
["All moving parts secured?",null,"Yes                         No                     If No, explain:",{"$f":"FLInsExp1","v":0}]
["All attachments or loose items secured?",null,"Yes                         No                     If No, explain:",{"$f":"FLInsExp2","v":0}]
["31. Rigging Component Inspection"]
["Certificates/Tags Checked?",null,"Yes                         No                     If No, explain:",{"$f":"FLInsExp3","v":0}]
["Rigging in good condition?",null,"Yes                         No                     If No, explain:",{"$f":"FLInsExp4","v":0}]
[]
[]
["Section B - Signatures:"]
["Pre-Lift Meeting","Date:  "]
[]
["1.  Operator","Date:  ","Signature"]
[]
["2.  Rigger","Date:  ","Signature"]
[]
["3.  Designated Signal Person  ","Date:  ","Signature"]
[]
["4.  Project Construction Manager","Date: ","Signature"]
[]
["5.  Safety Manager","Date:","Signature"]
[]
["6.  Supervisor","Date:","Signature"]
[]
["7.  Client (NA if not required )","Date:","Signature"]
[]
[null,"File a completed copy of this form in the Site Safety Folder"]

{"sheet":"Printable Lift Plan","index":3,"n_rows":322,"n_cols":16,"rows_kept":322,"merged":[[8,1,8,12],[9,1,9,5],[9,7,9,12],[10,1,10,5],[10,7,10,12],[11,1,11,12],[15,4,15,6],[15,9,15,12],[16,4,16,6],[16,9,16,12],[17,4,17,6],[22,1,22,3],[22,7,22,12],[23,2,23,3],[23,4,23,6],[23,8,23,9],[23,10,23,12],[25,2,25,3],[25,4,25,6],[25,8,25,9],[25,10,25,12],[26,5,26,6],[26,8,26,9],[26,10,26,12],[27,2,27,3],[27,4,27,6],[27,8,27,9],[27,10,27,12],[28,0,28,4],[28,5,28,6],[29,2,29,3],[29,4,29,6],[29,8,29,9],[29,10,29,12],[30,5,30,12],[31,4,31,6],[31,8,31,9],[31,10,31,12],[32,0,32,4],[32,5,32,6],[32,8,32,9],[32,10,32,12],[33,2,33,3],[33,4,33,6],[33,8,33,9],[33,10,33,12],[34,0,34,4],[34,5,34,6],[34,8,34,9],[34,10,34,12],[38,0,44,12],[48,1,48,5],[48,8,48,12],[49,1,49,5],[49,8,49,12],[50,1,50,5],[50,8,50,12],[51,1,51,5],[51,8,51,12],[52,1,52,5],[52,8,52,12],[53,1,53,5],[69,0,69,6],[69,7,69,12],[70,0,70,6],[70,7,70,12],[71,0,71,6],[71,7,71,12],[72,0,72,6],[72,7,72,12],[73,0,73,6],[73,7,73,12],[74,0,74,6],[74,7,74,12],[75,0,75,6],[75,7,75,12],[76,0,76,6],[76,7,76,12],[77,0,77,6],[77,7,77,12],[78,0,78,6],[78,7,78,12],[79,0,79,6],[79,7,79,12],[80,0,80,6],[80,7,80,12],[81,0,81,6],[81,7,81,12],[82,0,82,6],[83,0,83,6],[83,7,83,12],[84,0,84,6],[84,7,84,12],[85,0,85,6],[85,7,85,12],[86,0,86,6],[86,7,86,12],[87,0,87,6],[87,7,87,12],[88,0,88,6],[88,7,88,12],[89,0,89,6],[89,7,89,12],[90,0,90,6],[90,7,90,12],[91,0,91,6],[91,7,91,12],[92,0,92,6],[92,7,92,12],[96,0,96,6],[96,7,96,12],[97,0,97,6],[97,7,97,12],[98,0,98,6],[98,7,98,12],[99,0,99,6],[99,7,99,12],[100,0,100,6],[100,7,100,12],[101,0,101,6],[101,7,101,12],[102,0,102,6],[102,7,102,12],[103,0,103,6],[103,7,103,12],[104,0,104,6],[104,7,104,12],[105,0,105,6],[105,7,105,12],[106,0,106,6],[106,7,106,12],[107,0,107,6],[107,7,107,12],[108,0,108,6],[108,7,108,12],[109,0,109,6],[109,7,109,12],[110,0,110,6],[110,7,110,12],[111,0,111,6],[111,7,111,12],[112,0,112,6],[113,0,113,6],[114,0,114,6],[115,0,115,6],[116,0,116,6],[117,0,117,6],[120,0,125,12],[130,0,130,3],[132,0,132,1],[132,8,132,11],[134,0,134,1],[134,8,134,11],[136,0,136,3],[136,4,136,6],[136,8,136,9],[143,1,143,8],[144,1,144,8],[145,1,145,8],[146,1,146,8],[147,1,147,8],[148,1,148,8],[149,1,149,8],[150,1,150,8],[151,1,151,8],[152,1,152,8],[153,1,153,8],[154,1,154,8],[160,0,178,12],[186,1,194,12],[244,0,244,9],[244,10,244,11],[246,0,246,9],[246,10,246,11],[248,0,248,9],[248,10,248,11],[250,0,250,9],[250,10,250,11],[252,0,252,9],[252,10,252,11],[254,0,254,9],[254,10,254,11],[256,0,256,9],[256,10,256,11],[258,10,258,11],[260,10,260,11],[262,10,262,11],[264,10,264,11],[266,10,266,11],[268,10,268,11],[270,10,270,11],[272,10,272,11],[277,10,277,12],[279,10,279,12],[281,10,281,12],[283,10,283,12],[285,10,285,12],[287,10,287,12],[289,10,289,12],[291,10,291,12],[293,10,293,12],[295,10,295,12],[297,10,297,12],[299,10,299,12],[305,0,310,12]]}
[]
[{"$nulls":6},"Appendix 4"]
[{"$nulls":6},"Example Lift Plan"]
[]
[]
["To be completed by the competent person"]
[]
[]
["Lift Plan Title:"]
["Site:",{"$nulls":5},"SOW:"]
["Client:",{"$nulls":5},"Project:"]
["Lift Location: "]
[]
["Lift Type:",null,"Routine",null,null,"Non-routine",null,null,"Critical"]
[{"$nulls":7},"Note: Engineered lifts requires additional approvals   "]
["References:",null,null,"Lift Plan No.",{"$nulls":4},"Procedures Ref."]
[{"$nulls":3},"Risk Assessment No.",{"$nulls":4},"Drawings Ref."]
[{"$nulls":3},"Permit to Work No."]
[]
[]
["Load Details / Crane Details (maximum hook load not to be exceeded)"]
[]
["Load ID",{"$nulls":4},"Load Dimensions (L/W/H):"]
[]
["Center of gravity:",{"$nulls":4},"Obvious",null,null,"Estimated",null,null,"Drawing"]
[]
["Design lift conditions (maximum):",{"$nulls":7},"Wind (knots/MPH)"]
[]
["Gross lift weight/max hook load in air",{"$nulls":7},"Actual",null,null,"Assessed"]
[]
["Crane configuration/mode/type:"]
[]
["SWL at this radius",{"$nulls":7},"Design hook height:"]
[]
["Maximum hook height:",{"$nulls":7},"Maximum radius:"]
[]
["Description of lifting operation"]
{"$rows_empty":9}
["Lifting team personnel   Attach STA with information on the following and tick as applicable."]
[]
[null,"Prevention of person(s) becoming stuck/trapped",{"$nulls":6},"Environmental hazards",{"$nulls":6},"Yes"]
[null,"Prevention of person(s) falling/being crushed",{"$nulls":6},"Fall hazards",{"$nulls":6},"No"]
[null,"3 Part communications methods",{"$nulls":6},"Currently trained/competent personnel",{"$nulls":6},"N/A"]
[null,"Crane annual inspection and load test documentation ",{"$nulls":6},"Engineer technical data for rigging hardware (lifting beams, others) "]
[null,"Site-specific procedures",{"$nulls":6},"If applicable high angle rescue available for support"]
[null,"If applicable equipment properly secured in transporter"]
{"$rows_empty":8}
[{"$nulls":14},"Yes"]
[{"$nulls":14},"No"]
[]
[]
["Possible safety measures to be considered. Please answer the questions as applicable and provide "]
["“step-by-step” details on the following section.  To be completed for safety measures by lift supervisor."]
[]
["Is the weight of the load verified?",{"$nulls":6},"Based on the size of the load have you identified the proper eye bolts, turnbuckles and chainfalls?"]
[]
["Have you confirmed the stability of this load?",{"$nulls":6},"Is the load to be transported to a laydown area away from the crane radius?"]
[]
["Is the lifting point available directly overhead?",{"$nulls":6},"Are there conflicting operations?"]
[]
["If this lift an awkward size/shape load with sharp edges?",{"$nulls":6},"Do all members of the lifting team speak the same language?"]
[]
["Does the equipment/load have dedicated lift points (trunnions)?",{"$nulls":6},"If applicable are FME devices ready for use?"]
[]
["Is the operator licensed/certified to operate this crane?",{"$nulls":6},"When using mobile cranes or boom-trucks. Have you conducted ground pressure calculations for setting up the outriggers?*"]
[]
["Is the crane capacity adequate for the radius of this lift?*",{"$nulls":6},"If working on nights do you have the proper load visibility from all angles?"]
[]
["Have you removed all loose objects from the load?",{"$nulls":6},"Is this lift going to have blind points?"]
[]
["Do you have proper cribbing material and understand the GE/GSII cribbing requirements?",{"$nulls":6},"If working on nights do you have proper lighting for laydown/set-down areas?"]
[]
["Are tag lines required?",{"$nulls":6},"Have you established an exclusion zone around the lifting operation?"]
[]
["Are you lifting chemicals?",{"$nulls":6},"Is ground cover needed under crane to catch/contain oil spills?*"]
[]
["Is access and egress available to connect/remove the rigging hardware?",{"$nulls":6},"Do we have suitable/adequate supervision for this lift?"]
[]
[]
[]
[]
["Are you using more than one crane to perform this lift?",{"$nulls":6},"Do you have the proper PPE for the task at hand?"]
[]
["Will you be using more than 100% of this crane's total capacity?",{"$nulls":6},"Have you and the lift team prepared the STA and reviewed it in the work area as required?"]
[]
["Have you validated the certifications for the rigging hardware that will be use during this lift?",{"$nulls":6},"If using lifting beams/spreader bars have you reviewed the technical engineer documentation? "]
[]
["Do you have the proper mats under each outrigger pad?",{"$nulls":6},"Is the working space adequate and  unobstructed e.g. scaffolds, pipes?"]
[]
["Have you conducted a visual pre-use inspection of the rigging hardware that will be used for this lift?",{"$nulls":6},"Is the general work area free of congestion to minimize slip/trip/fall hazards, and alllow the operator to escape in event of unexpected movement or equipment failure?"]
[]
["Have we identified the safe working load (SWL) and crane mode?",{"$nulls":6},"Was the center of gravity (CG) identified before the start of the lift? "]
[]
["Are wire rope/slings softeners available and used as required?",{"$nulls":6},"Are you planning to monitor the wind speed and other weather conditions?"]
[]
["Are you going to fly the load over plant/equipment/assets?",{"$nulls":6},"If applicable, are we using sufficient personnel to safely walk the load (spotters)?"]
[]
["Does this lift have restricted head room?"]
[]
["Can the lay-down area support the intended load - strenght/stability?"]
[]
["Have you confirmed that the crane annual inspection is current and it passed the inspection?"]
[]
[]
["Any further safety measures   (as identified in the risk assessment)"]
{"$rows_empty":8}
["Communications"]
[]
["Communications available:"]
[]
["Primary: ",null,null,"Radio",null,"Hand signal","Voice","Other:"]
[]
["Secondary: ",null,null,"Radio",null,"Hand signal","Voice","Other:"]
[]
["Communication checks:"]
[]
[{"$nulls":3},"Primary Checked",{"$nulls":3},"Secondary checked"]
[]
[]
["Lifting equipment and accessories to be used   (specify type, SWL, Serial # and configuration)"]
[]
[1]
[2]
[3]
[4]
[5]
[6]
[7]
[8]
[9]
[10]
[11]
[12]
[]
[]
[]
["Step-by-step details of lifting operation                                  (Responsible)"]
{"$rows_empty":21}
["Technical review "]
[]
["Has a technical review conducted?"]
[]
[null,null,"Yes (attach details)",{"$nulls":5},"No"]
[]
["Details"]
{"$rows_empty":10}
["Sketches"]
["Sketch or attach Drawing detailing the rigging-up of the lifting equipment and lifting accessories"]
{"$rows_empty":21}
["Sketch of initial pick-up location, load path and lay-down area (include any obstructions or equipment clashes that may occur "]
["and how they will be avoided)"]
{"$rows_empty":20}
["Applicable Legislation/Codes of practice"]
[]
["Health and Safety at Work etc Act 1974"]
[]
["Lifting Operations and Lifting Equipment Regulations 1998 (LOLER)"]
[]
["Provision and Use of Work Equipment Regulations (PUWER) 1998"]
[]
["Control of Substances Hazardous to Health Regulations 2002"]
[]
["Manual Handling Operations Regulations 1992 as amended 2002"]
[]
["BS7121 Safe Use of Cranes part 1 – General 2006"]
[]
["BS7121 Safe Use of Cranes part 3 – General 2000"]
[]
["OSHA 1910.179 & 184 General industry"]
[]
["OSHA 1926.1400 Construction, 1926.1432 Multi-crane/derricks, 1926.753 Hoisting & rigging"]
[]
["ASME B30.1 Hydraulic industrial rollers, air casters and hydraulic gantries"]
[]
["ASME B30.2 Overhead and Gantry Cranes (top running bridge, multiple girder, top running trolley hoist)"]
[]
["ASME B30.9 Slings"]
[]
["ASME B30.26 Rigging Hardware"]
[]
["ASME B30.20 Below the Hook Lifting Devices"]
[]
["ASME B.17 Overhead and Gantry Cranes (top running bridge, single girder, underhung hoist)"]
[]
["Persons involved in the lift"]
[]
["Skill/Expertise",{"$nulls":4},"Name",null,"Signature",null,null,"Date"]
["Appointed Person/Supervisor"]
[]
["Customer Liason"]
[]
["Banksman/Signal Person"]
[]
["Rigger"]
[]
["Crane Operator"]
[]
["Tag Line Operator #1"]
[]
["Tag Line Operator #1"]
[]
["Mechanical Fitter #1"]
[]
["Mechanical Fitter #2"]
[]
["Mechanical Fitter #3"]
[]
["Mechanical Fitter #4"]
[]
["Field Engineer"]
[]
[{"$nulls":4},"Attended pre task briefing",null,"Read and understands the lift plan."]
[]
["Debrief and learning points (did the lift go as planned or are changes to the lift plan required?)"]
{"$rows_empty":9}
["Competent person(s)"]
[]
["FE Name"]
[]
["Supervisor Name"]
[]
["Rigger Name"]
[]
[{"$nulls":3},"Name",null,null,"Signature",null,null,"Date"]

{"sheet":"Printable Critical Permit","index":4,"n_rows":66,"n_cols":5,"rows_kept":66,"merged":[[0,0,1,3],[2,0,2,4],[4,4,5,4],[6,0,6,1],[6,2,6,4],[7,2,7,3],[8,2,8,3],[9,3,10,3],[10,2,16,2],[14,3,15,4],[22,3,22,4],[23,3,23,4],[24,3,24,4],[25,3,25,4],[27,3,27,4],[28,3,28,4],[29,3,29,4],[30,3,30,4],[31,3,31,4],[32,3,32,4],[33,3,33,4],[34,3,34,4],[35,3,35,4],[36,3,36,4],[37,3,37,4],[38,3,38,4],[41,3,41,4],[42,3,42,4],[44,3,44,4],[45,3,45,4],[48,0,48,4]]}
["Major & Critical Lift Permit - Mobile Crane",{"$nulls":3},"Issue Date:"]
[]
["Section A - Load & Capacity Data"]
["1. Project Name","2. Contractor","3. Lift Date","4.Lift Location"]
["5.  Crane Manufacturer","6.  Model #","7.Serial #","8.  Total Boom/Boom Ext.&/or Jib Length @ time of Lift:","9.  Parts of Load Cable on Block:"]
["10.  Max radius during lift (pick, swing, and set)","11.  Swing Dir. And Degrees of swing","12.  Lift Elevation (ft.)        Max.                   Min.","13.  Boom Angle:       Pick               Set"]
["14.  Will Jib and/or Boom Ext be used?  Yes                 No\n",null,"15.  Who determined weight of load and Lift?\n  "]
["If Yes:  Length (ft)"]
["         Erected  (  )                                           Stowed  (  )"]
["16.  Component Weights",null,"17.  Load Description:","18.  Mfg. (100%chart) rated capacity from chart as outlined in Blocks 5 - 14"]
["Jib / Boom extension:"]
["Headache Ball Size: ",null,null,"19. Weight of Load:"]
["Load Block Size:",null,null,"20.  Total Lift Load - (Block 16+19)"]
["Auxiliary Boom Head: ",null,null,"21.  Load % of Crane Capacity, (Divide Block 20 by 18)",{"$f":"IF(E10=0, \" \", +E13/E10)","v":" "}]
["Weight of Cable (Load Fall): "]
["Slings, Rigging, Shackles, Etc. :"]
["Lifting Booms or Bars: ",null,null,"22.  Inspection/Testing:"]
["Allowance for Unaccounted",null," 23. Is Crane Level?     Yes                    No","Date of Last Certification/inspection:"]
["Material in Equipment: ",null,"24.   Soil Conditions?   ","Poor                                                                 Good"]
["Other:  ",null,"Calculations?","Required                                          Not Required"]
["  Total Component Weights:          ____________________",null,"Crane Mats?","Required                                          Not Required"]
["25. Tagline Required?","26.  Hazards - attach additional sheets as required:"]
["Yes","          Electrical?","Yes                         No                     If Yes, explain:",{"$f":"ElectHaz","v":0}]
["No","         Overhead?","Yes                         No                     If Yes, explain:",{"$f":"OvrHd","v":0}]
["27.  Communications by:","         Underground?","Yes                         No                     If Yes, explain:",{"$f":"UndrGrnd","v":0}]
["HAND  OR   RADIO","Others?","Yes                         No                     If Yes, explain:",{"$f":"OthersEx","v":0}]
["28. Sketch of Crane relative to lift and rigging to component. Attach additional sheets if required:",null,null,"29. Rigging Component List"]
[" ",null,1,{"$f":"RigComp1","v":" "}]
[null,null,2,{"$f":"RigComp2","v":"     "}]
[null,null,3,{"$f":"RigComp3","v":0}]
[null,null,4,{"$f":"RigComp4","v":0}]
[null,null,5,{"$f":"RigComp5","v":0}]
[null,null,6,{"$f":"RigComp6","v":0}]
[null,null,7,{"$f":"RigComp7","v":0}]
[null,null,8,{"$f":"RigComp8","v":0}]
[null,null,9,{"$f":"RigComp9","v":0}]
[null,null,10,{"$f":"RigComp10","v":0}]
[null,null,11,{"$f":"RigComp11","v":0}]
[null,null,12,{"$f":"RigComp12","v":0}]
[]
["30. Final Load Inspection:"]
["All moving parts secured?",null,"Yes                         No                     If Yes, explain:",{"$f":"FLInsExp1","v":0}]
["All attachments or loose items secured?",null,"Yes                         No                     If Yes, explain:",{"$f":"FLInsExp2","v":0}]
["31. Rigging Component Inspection"]
["Certificates/Tags Checked?",null,"Yes                         No                     If Yes, explain:",{"$f":"FLInsExp3","v":0}]
["Rigging in good condition?",null,"Yes                         No                     If Yes, explain:",{"$f":"FLInsExp4","v":0}]
[]
[]
["Section B - Signatures:"]
["Pre-Lift Meeting","Date:  "]
[]
["1.  Operator","Date:  ","Signature"]
[]
["2.  Rigger","Date:  ","Signature"]
[]
["3.  Designated Signal Person  ","Date:  ","Signature"]
[]
["4.  Project Construction Manager","Date: ","Signature"]
[]
["5.  Safety Manager","Date:","Signature"]
[]
["6.  Supervisor","Date:","Signature"]
[]
["7.  Client (NA if not required )","Date:","Signature"]
[]
[null,"File a completed copy of this form in the Site Safety Folder"]

{"sheet":"OPTIONS","index":5,"n_rows":40,"n_cols":17,"rows_kept":40,"hidden":true,"merged":[[0,12,0,14]]}
[null,"YESNOLIST","LIFTTYPE","COGRAVITY","CRANETYPE","Sheets","Units","Wind","Frame / Technology","Scope","Weight","Distance","Calander",null,null,"Option","Soil"]
{"$rows_empty":7}
[{"$nulls":5},"Data Entry Sheet",{"$nulls":6},"Month","Day","Year"]
[null,"Yes","Normal Lift","Drawing","Overhead Crane","Lift Plan - Appendix 4","Imperial (lbs)","mph","Frame 3","Boroscope Isnpection","Lbs","Ft",1,1,2014,"Yes","Good"]
[null,"No","Critical Lift","Estimated","Mobile Crane","Critical Lift Permit","Standard (kgs)","kph","Frame 5001","Combustion Inspaction","Kgs","Mts",2,2,2015,"No","Poor"]
[null,null,"Engineered Lift ( >100% SWL)","Obvious",{"$nulls":3},"knots","Frame 5002","Hot Gas Path",null,null,3,3,2016,"N/A","N/A"]
[{"$nulls":8},"Frame 6","Major Inspection",null,null,4,4,2017]
[{"$nulls":8},"Frame 6 B","Major",null,null,5,5,2018]
[{"$nulls":8},"Frame 6 FA","Minor",null,null,6,6,2019]
[{"$nulls":8},"Frame 7",{"$nulls":3},7,7,2020]
[{"$nulls":8},"Frame 7 B",{"$nulls":3},8,8,2021]
[{"$nulls":8},"Frame 7 EA",{"$nulls":3},9,9,2022]
[{"$nulls":8},"Frame 7 F",{"$nulls":3},10,10,2023]
[{"$nulls":8},"Frame 7 FA",{"$nulls":3},11,11,2024]
[{"$nulls":8},"Frame 7 FB",{"$nulls":3},12,12,2025]
[{"$nulls":8},"Frame 7 H",{"$nulls":4},13]
[{"$nulls":8},"Frame 8",{"$nulls":4},14]
[{"$nulls":8},"Frame 9FA",{"$nulls":4},15]
[{"$nulls":8},"Frame 9E",{"$nulls":4},16]
[{"$nulls":8},"Frame 9B",{"$nulls":4},17]
[{"$nulls":8},"Frame 9EC",{"$nulls":4},18]
[{"$nulls":8},"Frame 9H",{"$nulls":4},19]
[{"$nulls":8},"Gas Installation",{"$nulls":4},20]
[{"$nulls":8},"Gas Other",{"$nulls":4},21]
[{"$nulls":8},"Steam A Class",{"$nulls":4},22]
[{"$nulls":8},"Steam D Class",{"$nulls":4},23]
[{"$nulls":8},"Steam D11",{"$nulls":4},24]
[{"$nulls":8},"Steam G",{"$nulls":4},25]
[{"$nulls":8},"Steam Other",{"$nulls":4},26]
[{"$nulls":8},"Generator-Major",{"$nulls":4},27]
[{"$nulls":8},"Steam Installation",{"$nulls":4},28]
[{"$nulls":8},"Valve Repair",{"$nulls":4},29]
[{"$nulls":8},"Valve Replacement",{"$nulls":4},30]
[{"$nulls":8},"Other",{"$nulls":4},31]

{"sheet":"Wind Speed Factor","index":6,"n_rows":4,"n_cols":2,"rows_kept":4}
[]
[null,"Wind factors to consider when operating mobile, overhead/gantry cranes"]
[null,"Weather conditions can adversely affect lifting activities. They need to be thoroughly considered both during the planning and execution of a lift. Special efforts may be required to ensure adequate warning is provided to avoid a sudden storm disrupting a lift in progress. \nA great deal of judgment is required when assessing when it is too windy to continue lifting operations. Most crane manufacturers have some recommendations concerning the maximum permissible wind speed/gust, or how to derate the crane under windy conditions, since their load charts assume no wind at all. \nWe adopted the following wind speeds: The crane operator can safely operate the crane without additional approval up to 16 miles per hour. If the wind speed is above 16 miles per hour but below 22 miles per hour the Granite supervisor and/or thee Granite qualified rigger must approve the crane activity.\nIf the wind speed is above 21 miles per hour, we need to stop. The supervisor, crane operator, qualified rigger and the GE FE must evaluate the situation and ensure that we follow the manufacturer’s recommended wind speed limit. Do NOT continue with the lift if the environment makes the lift unsafe.\n\nSome of the issues to consider when faced with windy weather conditions are:\n\n• The geometry and shape of the load, is there a large area exposed to wind loads? How difficult will the load be to control if a gust of wind catches it. \n• How high is the load to be lifted, wind speed generally increases with height. \n• Backward stability, backward stability can be a problem when the wind is from the front and the boom is high. \n• Wind from behind a crane, wind coming from the rear of the crane can cause the load to be blown away from the crane, increasing the radius and decreasing the crane capacity. \n• Wind from the side of a crane, wind corning from the side can put a load on the side of the boom and blow the load off vertical; which, in turn, can place an additional side load on the boom. In the United States, most booms are designed for a 20 mph (9 m/s) wind velocity on the side of the boom, plus a side load equal to 2% of the rated load. \n• Operating a crane between structures, operating a crane between buildings or process equipment under windy conditions can be hazardous due to the “wind tunnel” effect. As air blows around obstructions, there can be local areas of increased velocity that may exceed the safe lifting limit even though the general wind speed is not a problem. \n• GE EEs, affiliates, contractors, crane operators/riggers must understand fully the wind factors listed on this document.\n\nWind Speed verification: http://www.weather.com/ "]
[null,"http://www.weather.com/ "]